{"text_format":"1","workbook":"xlsx","n_sheets":3,"sheets":["استمارة تقييم المدرسين ","خلاصة المدرسين","ساجدة محمد عزيز يحيى"],"not_rendered":{"charts":0,"images":0,"macros":1,"external_links":0,"defined_names":2,"comments":0,"pivot_tables":0},"unopened":[],"bounds":{"document_bytes":16777216,"sheet_cells":100000,"rows_first":2000,"rows_last":500,"rows_between":2000,"halvings":0,"cell_chars":16384,"cell_head_chars":4096},"cells_cut":0,"cells_raw":0,"read":"whole","date_system":"1900"}

{"sheet":"استمارة تقييم المدرسين ","index":0,"n_rows":45,"n_cols":11,"rows_kept":45,"cut":false,"hidden":false,"merged":[[36,1,36,2],[29,1,29,2],[32,1,32,2],[33,1,33,2],[34,1,34,2],[25,1,25,2],[26,1,26,2],[27,1,27,2],[28,1,28,2],[35,1,35,2],[31,1,31,2],[30,0,30,5],[2,0,2,5],[1,0,1,5],[3,0,3,1],[13,0,13,5],[7,1,7,2],[8,1,8,2],[9,1,9,2],[10,1,10,2],[11,1,11,2],[12,1,12,2],[5,5,6,5],[23,0,23,5],[6,1,6,2],[24,1,24,2],[5,3,5,4],[14,1,14,2],[15,1,15,2],[16,1,16,2],[17,1,17,2],[18,1,18,2],[19,1,19,2],[20,1,20,2],[21,1,21,2],[22,1,22,2]]}
["وزارة التربية",null,null,null,null,"ترحيل وانشاء نسخة",null,null,"نوع العملة","جنيهاً","قرشاً"]
["المديرية العامة للتربية   .....................        قسم .............................                للعام الدراسي   2023-2022   "]
["استمارة تقييم أداء المرشدين التربويين من قبل مدير المدرسة وفقا للمعايير الخاصة بهم "]
["اسم المرشد التربوي",null,"المدرسة","عدد سنوات الخدمة","التولد","الشهادة والاختصاص"]
[null,"ساجدة محمد عزيز يحيى","اعدادية ليلى قاسم للبنات",26,"1965-02-12","بكالوريوس علم اجتماع "]
["أولا:- المجال المعرفي (30) درجة لكل معياد(6) درجات كحد اعلى",null,null,"درجة التقييم",null,"الملاحظات"]
["ت","المعايير",null,"رقما","كتابة"]
[1,"يعرف أسس ومادئ الارشاد التربوي ومهامه",null,5,{"$f":"NoToTxt(D8,$E$1,$F$1)","v":" خمسة "}]
[2,"يعرف اهداف عملية الارشاد التربوي",null,5,{"$f":"NoToTxt(D9,$E$1,$F$1)","v":" خمسة "}]
[3,"يعرف نظريات وأساليب الارشاد التربوي",null,4,{"$f":"NoToTxt(D10,$E$1,$F$1)","v":" أربعة "}]
[4,"يعرف منهجية وإجراءات البحث العلمي في الارشاد التربوي",null,4," أربعة "]
[5,"يعرف طرق جمع المعلومات عن الطلبة وتبويبها وتحليلها ",null,5," خمسة "]
[null,"المجموع",null,{"$f":"SUM(D8:D12)","v":23}," ثلاثة وعشرون "]
["ثانياً :- المجال المهاري(40) درجة لكل معيار (5)درجة كحد اعلى"]
[1,"يمتلك القدرة على التخطيط للعملية الارشادية ",null,5,{"$f":"NoToTxt(D15,$E$1,$F$1)","v":" خمسة "}]
[2,"يستطيع اجراء المقابلة والارشادية بنجاح",null,5,{"$f":"NoToTxt(D16,$E$1,$F$1)","v":" خمسة "}]
[3,"يتقن إدارة العملية الارشادية ويحقق أهدافها ",null,5," خمسة "]
[4,"يستخدم مهارات التواصل المختلفة في العملية الارشادية ",null,5," خمسة "]
[5,"قادراً على اجراء عملية التوجيه المهني بشكل فعال",null,4," أربعة "]
[6,"يشارك في الفعاليات والأنشطة داخل المدرسة وخارجها بشكل فعال",null,5," خمسة "]
[7,"يتواصل مع الجهات العليا بشكل فعال لتحقيق اهداف الارشاد التربوي ",null,5," خمسة "]
[8,"يلتزم باجراء عملية التقييم الذاتي لأدائه بشكل موظوعي",null,5," خمسة "]
[null,"المجموع",null,{"$f":"SUM(D15:D22)","v":39},{"$f":"NoToTxt(D23,$E$1,$F$1)","v":" تسعة وثلاثون "}]
["ثالثاً:- القيم والاتجاهات (20)درجة لكل معيار(4) درجة كحد اعلى"]
[1,"يلتزم باخلاقيات العمل الارشادي وتوجيهاته ",null,4,{"$f":"NoToTxt(D25,$E$1,$F$1)","v":" أربعة "}]
[2,"يعزز القيم والاتجاهات الإيجابية لدى الطلبة ",null,4,{"$f":"NoToTxt(D26,$E$1,$F$1)","v":" أربعة "}]
[3,"يسعى الى بث روح المحبة والتسامح والتعاون والايثار في نفس الطلبة ",null,4," أربعة "]
[4,"يدعم توجيهات الطلبة في مجال حقوق الانسان وتعزيز مفاهيم العدالة والحرية ",null,4," أربعة "]
[5,"ينمي استعدادات الطلبة لتحمل المسؤولية والشجاعة في اتخاذ القرار",null,4," أربعة "]
[null,"المجموع",null,{"$f":"SUM(D25:D29)","v":20},{"$f":"NoToTxt(D30,$E$1,$F$1)","v":" عشرون "}]
["رابعاً:-تعطي ما لا يزيد عن (10)درجات من قبل مدير المدرسة ولكل معيار (2)درجتان كحد اعلى"]
[1,"يلتزم بتطبيق الأنظمة والتعليمات التربوية النافذة ",null,2,{"$f":"NoToTxt(D32,$E$1,$F$1)","v":" اثنان "}]
[2,"يتقيم علاقات إيجابية مع أعضاء الهيئة التعليمية والطلبة واولياء امورهم ",null,2,{"$f":"NoToTxt(D33,$E$1,$F$1)","v":" اثنان "}]
[3,"يضع الخطة الارشادية السنوية وينفذها بدقه وموضوعية ",null,2," اثنان "]
[4,"يتابع إجراءات مليء البطاقة المدرسية وادامتها ",null,2," اثنان "]
[5,"ينظم غرفته الارشادية ويجهزها بالوسائل الارشادية اللازمة",null,0,"صفر","لا توجد غرفه"]
[null,"المجموع",null,{"$f":"SUM(D32:D36)","v":8},{"$f":"NoToTxt(D37,$E$1,$F$1)","v":" ثمانية "}]
[null,"المجموع النهائي لدرجة التقييم",null,{"$f":"D37+D30+D23+D13","v":90},{"$f":"NoToTxt(D38,$E$1,$F$1)","v":" تسعون "}]
[null,"الملاحظات والتوصيات بهدف التطوير"]
[]
[null,null,null,null,"اسم مدير المدرسة"]
[null,null,null,null,"توقيعه"]
[]
[]
[null,"ملاحظة الدرجة العليا لتحقق المعيار (70%) من المجموع العام"]

{"sheet":"خلاصة المدرسين","index":1,"n_rows":46,"n_cols":14,"rows_kept":46,"cut":false,"hidden":false,"merged":[[3,8,3,10],[3,11,4,11],[3,12,4,12],[3,13,4,13],[0,0,0,13],[1,0,1,13],[2,0,2,13],[3,6,3,7],[3,5,4,5],[3,0,4,0],[3,1,4,1],[3,2,4,2],[3,3,4,3],[3,4,4,4]]}
["وزارة التربية "]
["المديرية العامة لتربية ديالى /شعبة إدارة الجودة الشاملة والتطوير المؤسسي"]
["استمارة تقييم أداء المدرسين من قبل مديري المدارس الثانوية وفقاً لمعايير الجودة للعام الدراسي 2023/2022"]
["ت","اسم المدرس الرباعي","اسم المدرسة ","عدد سنوات الخدمة ","التولد","الاختصاص","القاطع",null,"درجة التقييم لكل مجال",null,null,"الدرجة النهائية","الملاحظات","اسم مدير المدرسة"]
[null,null,null,null,null,null,"القضاء","الناحية","المجال المعرفي","مجال المهارات","مجال الاتجاهات"]
[1,{"$f":"'استمارة تقييم المدرسين '!B5","v":"ساجدة محمد عزيز يحيى"},{"$f":"VLOOKUP($B$6,'استمارة تقييم المدرسين '!$B$5:$F$5,2,0)","v":"اعدادية ليلى قاسم للبنات"},{"$f":"VLOOKUP($B$6,'استمارة تقييم المدرسين '!$B$5:$F$5,3,0)","v":26},{"$f":"VLOOKUP($B$6,'استمارة تقييم المدرسين '!$B$5:$F$5,4,0)","v":"1965-02-12"},{"$f":"VLOOKUP($B$6,'استمارة تقييم المدرسين '!$B$5:$F$5,5,0)","v":"بكالوريوس علم اجتماع "},"خانقين",null,{"$f":"IF(B6='استمارة تقييم المدرسين '!B5,'استمارة تقييم المدرسين '!D13)","v":23},{"$f":"IF(B6='استمارة تقييم المدرسين '!B5,'استمارة تقييم المدرسين '!D23)","v":39},{"$f":"IF(B6='استمارة تقييم المدرسين '!B5,'استمارة تقييم المدرسين '!D30)","v":20},{"$f":"SUM(I6:K6)","v":82}]
[2,null,null,null,null,null,null,null,null,null,null,{"$f":"SUM(I7:K7)","v":0}]
[3,null,null,null,null,null,null,null,null,null,null,0]
[4,null,null,null,null,null,null,null,null,null,null,0]
[5,null,null,null,null,null,null,null,null,null,null,0]
[6,null,null,null,null,null,null,null,null,null,null,0]
[7,null,null,null,null,null,null,null,null,null,null,0]
[8,null,null,null,null,null,null,null,null,null,null,0]
[9,null,null,null,null,null,null,null,null,null,null,0]
[10,null,null,null,null,null,null,null,null,null,null,0]
[11,null,null,null,null,null,null,null,null,null,null,0]
[12,null,null,null,null,null,null,null,null,null,null,0]
[13,null,null,null,null,null,null,null,null,null,null,0]
[14,null,null,null,null,null,null,null,null,null,null,0]
[15,null,null,null,null,null,null,null,null,null,null,0]
[16,null,null,null,null,null,null,null,null,null,null,0]
[17,null,null,null,null,null,null,null,null,null,null,0]
[18,null,null,null,null,null,null,null,null,null,null,0]
[19,null,null,null,null,null,null,null,null,null,null,0]
[20,null,null,null,null,null,null,null,null,null,null,0]
[21,null,null,null,null,null,null,null,null,null,null,0]
[22,null,null,null,null,null,null,null,null,null,null,0]
[23,null,null,null,null,null,null,null,null,null,null,0]
[24,null,null,null,null,null,null,null,null,null,null,0]
[25,null,null,null,null,null,null,null,null,null,null,0]
[26,null,null,null,null,null,null,null,null,null,null,0]
[27,null,null,null,null,null,null,null,null,null,null,0]
[28,null,null,null,null,null,null,null,null,null,null,0]
[29,null,null,null,null,null,null,null,null,null,null,0]
[30,null,null,null,null,null,null,null,null,null,null,0]
[31,null,null,null,null,null,null,null,null,null,null,0]
[32,null,null,null,null,null,null,null,null,null,null,0]
[33,null,null,null,null,null,null,null,null,null,null,0]
[34,null,null,null,null,null,null,null,null,null,null,0]
[35,null,null,null,null,null,null,null,null,null,null,0]
[36,null,null,null,null,null,null,null,null,null,null,0]
[37,null,null,null,null,null,null,null,null,null,null,0]
[38,null,null,null,null,null,null,null,null,null,null,0]
[39,null,null,null,null,null,null,null,null,null,null,0]
[40,null,null,null,null,null,null,null,null,null,null,0]
[41,null,null,null,null,null,null,null,null,null,null,0]

{"sheet":"ساجدة محمد عزيز يحيى","index":2,"n_rows":45,"n_cols":11,"rows_kept":45,"cut":false,"hidden":false,"merged":[[31,1,31,2],[32,1,32,2],[33,1,33,2],[34,1,34,2],[35,1,35,2],[36,1,36,2],[25,1,25,2],[26,1,26,2],[27,1,27,2],[28,1,28,2],[29,1,29,2],[30,0,30,5],[19,1,19,2],[20,1,20,2],[21,1,21,2],[22,1,22,2],[23,0,23,5],[24,1,24,2],[13,0,13,5],[14,1,14,2],[15,1,15,2],[16,1,16,2],[17,1,17,2],[18,1,18,2],[7,1,7,2],[8,1,8,2],[9,1,9,2],[10,1,10,2],[11,1,11,2],[12,1,12,2],[1,0,1,5],[2,0,2,5],[3,0,3,1],[5,3,5,4],[5,5,6,5],[6,1,6,2]]}
["وزارة التربية",null,null,null,null,"ترحيل",null,null,"نوع العملة","جنيهاً","قرشاً"]
["المديرية العامة للتربية   .....................        قسم .............................                للعام الدراسي   2023-2022   "]
["استمارة تقييم أداء المرشدين التربويين من قبل مدير المدرسة وفقا للمعايير الخاصة بهم "]
["اسم المرشد التربوي",null,"المدرسة","عدد سنوات الخدمة","التولد","الشهادة والاختصاص"]
[null,"ساجدة محمد عزيز يحيى","اعدادية ليلى قاسم للبنات",26,"1965-02-12","بكالوريوس علم اجتماع "]
["أولا:- المجال المعرفي (30) درجة لكل معياد(6) درجات كحد اعلى",null,null,"درجة التقييم",null,"الملاحظات"]
["ت","المعايير",null,"رقما","كتابة"]
[1,"يعرف أسس ومادئ الارشاد التربوي ومهامه",null,5,{"$f":"NoToTxt(D8,$E$1,$F$1)","v":" خمسة "}]
[2,"يعرف اهداف عملية الارشاد التربوي",null,5,{"$f":"NoToTxt(D9,$E$1,$F$1)","v":" خمسة "}]
[3,"يعرف نظريات وأساليب الارشاد التربوي",null,4,{"$f":"NoToTxt(D10,$E$1,$F$1)","v":" أربعة "}]
[4,"يعرف منهجية وإجراءات البحث العلمي في الارشاد التربوي",null,4," أربعة "]
[5,"يعرف طرق جمع المعلومات عن الطلبة وتبويبها وتحليلها ",null,5," خمسة "]
[null,"المجموع",null,{"$f":"SUM(D8:D12)","v":23}," ثلاثة وعشرون "]
["ثانياً :- المجال المهاري(40) درجة لكل معيار (5)درجة كحد اعلى"]
[1,"يمتلك القدرة على التخطيط للعملية الارشادية ",null,5,{"$f":"NoToTxt(D15,$E$1,$F$1)","v":" خمسة "}]
[2,"يستطيع اجراء المقابلة والارشادية بنجاح",null,5,{"$f":"NoToTxt(D16,$E$1,$F$1)","v":" خمسة "}]
[3,"يتقن إدارة العملية الارشادية ويحقق أهدافها ",null,5," خمسة "]
[4,"يستخدم مهارات التواصل المختلفة في العملية الارشادية ",null,5," خمسة "]
[5,"قادراً على اجراء عملية التوجيه المهني بشكل فعال",null,4," أربعة "]
[6,"يشارك في الفعاليات والأنشطة داخل المدرسة وخارجها بشكل فعال",null,5," خمسة "]
[7,"يتواصل مع الجهات العليا بشكل فعال لتحقيق اهداف الارشاد التربوي ",null,5," خمسة "]
[8,"يلتزم باجراء عملية التقييم الذاتي لأدائه بشكل موظوعي",null,5," خمسة "]
[null,"المجموع",null,{"$f":"SUM(D15:D22)","v":39}," تسعة وثلاثون "]
["ثالثاً:- القيم والاتجاهات (20)درجة لكل معيار(4) درجة كحد اعلى"]
[1,"يلتزم باخلاقيات العمل الارشادي وتوجيهاته ",null,4,{"$f":"NoToTxt(D25,$E$1,$F$1)","v":" أربعة "}]
[2,"يعزز القيم والاتجاهات الإيجابية لدى الطلبة ",null,4,{"$f":"NoToTxt(D26,$E$1,$F$1)","v":" أربعة "}]
[3,"يسعى الى بث روح المحبة والتسامح والتعاون والايثار في نفس الطلبة ",null,4," أربعة "]
[4,"يدعم توجيهات الطلبة في مجال حقوق الانسان وتعزيز مفاهيم العدالة والحرية ",null,4," أربعة "]
[5,"ينمي استعدادات الطلبة لتحمل المسؤولية والشجاعة في اتخاذ القرار",null,4," أربعة "]
[null,"المجموع",null,{"$f":"SUM(D25:D29)","v":20}," عشرون "]
["رابعاً:-تعطي ما لا يزيد عن (10)درجات من قبل مدير المدرسة ولكل معيار (2)درجتان كحد اعلى"]
[1,"يلتزم بتطبيق الأنظمة والتعليمات التربوية النافذة ",null,2,{"$f":"NoToTxt(D32,$E$1,$F$1)","v":" اثنان "}]
[2,"يتقيم علاقات إيجابية مع أعضاء الهيئة التعليمية والطلبة واولياء امورهم ",null,2,{"$f":"NoToTxt(D33,$E$1,$F$1)","v":" اثنان "}]
[3,"يضع الخطة الارشادية السنوية وينفذها بدقه وموضوعية ",null,2," اثنان "]
[4,"يتابع إجراءات مليء البطاقة المدرسية وادامتها ",null,2," اثنان "]
[5,"ينظم غرفته الارشادية ويجهزها بالوسائل الارشادية اللازمة",null,0,"صفر","لا توجد غرفه"]
[null,"المجموع",null,{"$f":"SUM(D32:D36)","v":8},{"$f":"NoToTxt(D37,$E$1,$F$1)","v":" ثمانية "}]
[null,"المجموع النهائي لدرجة التقييم",null,{"$f":"D37+D30+D23+D13","v":90},{"$f":"NoToTxt(D38,$E$1,$F$1)","v":" تسعون "}]
[null,"الملاحظات والتوصيات بهدف التطوير"]
[]
[null,null,null,null,"اسم مدير المدرسة"]
[null,null,null,null,"توقيعه"]
[]
[]
[null,"ملاحظة الدرجة العليا لتحقق المعيار (70%) من المجموع العام"]